bitfinex-derivatives/quotes_BTCF0:USTF0_20250212
["timestamp","ask_amount","ask_price","bid_price","bid_amount"]
[1739393210667,0.002,97132.0,97131.0,0.2058955]
[1739393212280,0.002,97132.0,97131.0,1.7058955]
[1739393212470,0.001,97132.0,97131.0,1.7058955]
[1739393212670,0.002,97132.0,97131.0,1.7058955]
[1739393213074,0.001,97132.0,97131.0,1.7058955]
[1739393213277,0.002,97132.0,97131.0,1.7058955]
[1739393215573,0.002,97132.0,97131.0,1.7376955]
[1739393215775,0.2058632,97148.0,97147.0,0.2058637]
[1739393216774,0.21632317,97148.0,97147.0,0.2058637]
[1739393217383,0.21171392,97148.0,97147.0,0.2058637]
[1739393217584,0.21171392,97148.0,97147.0,0.2068637]
[1739393217585,0.21271392,97148.0,97147.0,0.2068637]
[1739393218379,0.21271392,97148.0,97147.0,0.2078637]
[1739393220678,0.001,97148.0,97147.0,0.2078637]
[1739393220985,0.00015439,97157.0,97147.0,0.3628]
[1739393221189,0.00015439,97157.0,97156.0,0.2058446]
[1739393221391,0.00015439,97157.0,97156.0,1.7058446]
[1739393221887,1e-08,97157.0,97156.0,1.7058446]
[1739393222483,1e-08,97157.0,97156.0,1.7068446]
[1739393223688,1e-08,97157.0,97156.0,1.7078446]
[1739393223892,1e-08,97157.0,97156.0,2.0686446]
[1739393224382,1e-08,97157.0,97156.0,2.0676446]
[1739393224588,1e-08,97157.0,97156.0,0.001]
[1739393224589,0.20584251,97157.0,97156.0,0.001]
[1739393224785,1e-08,97157.0,97147.0,0.3608]
[1739393225486,1e-08,97157.0,97140.0,0.18426108]
[1739393225684,1e-08,97157.0,97140.0,0.0622]
[1739393225685,0.03170001,97157.0,97140.0,0.0622]
[1739393225884,0.03170001,97157.0,97147.0,0.12206108]
[1739393226183,0.03170001,97157.0,97156.0,0.2058446]
[1739393226386,1e-08,97157.0,97156.0,0.2058446]
[1739393227289,0.205849,97154.0,97151.0,0.2058544]
[1739393227691,0.2058512,97153.0,97151.0,0.2058544]
[1739393227884,0.2058512,97153.0,97144.0,0.3608]
[1739393228089,0.2058512,97153.0,97152.0,0.2058531]
[1739393228685,1e-08,97157.0,97156.0,0.2058446]
[1739393229390,0.20584251,97157.0,97156.0,0.2058446]
[1739393229783,1e-08,97157.0,97156.0,0.2058446]
[1739393230589,0.2058496,97154.0,97151.0,0.2058537]
[1739393230792,0.3608,97152.0,97146.0,0.2058655]
[1739393231386,0.2058637,97147.0,97146.0,0.2058655]
[1739393232181,0.0301,97151.0,97122.0,0.631899]
[1739393232182,0.0301,97151.0,97136.0,0.0015441]
[1739393232388,0.2058807,97139.0,97136.0,0.0015441]
[1739393232787,0.2058807,97139.0,97130.0,0.2058982]
[1739393233495,0.2058807,97139.0,97138.0,0.00515439]
[1739393235191,0.2058807,97139.0,97138.0,0.00015439]
[1739393235697,0.3608,97139.0,97116.0,0.2059275]
[1739393235894,0.205931,97117.0,97116.0,0.2059275]
[1739393237093,0.205931,97117.0,97116.0,0.2139275]
[1739393237298,0.205931,97117.0,97116.0,0.2159275]
[1739393238094,0.205931,97117.0,97116.0,0.01]
[1739393240300,0.2059464,97108.0,97107.0,0.00015439]
[1739393240498,0.5667464,97108.0,97107.0,0.00015439]
[1739393241396,0.5667464,97108.0,97107.0,0.00515439]
[1739393241802,0.5667464,97108.0,97107.0,0.01815439]
[1739393242099,0.5667464,97108.0,97107.0,0.22410289]
[1739393242603,0.5737464,97108.0,97107.0,0.21110289]
[1739393243401,0.5737464,97108.0,97107.0,0.00515439]
[1739393243594,0.5777464,97108.0,97107.0,0.00015439]
[1739393244194,0.5767464,97108.0,97107.0,0.00015439]
[1739393246206,0.5757464,97108.0,97107.0,0.00115439]
[1739393246408,0.5747464,97108.0,97107.0,0.00115439]
[1739393246903,0.5687464,97108.0,97107.0,0.00015439]
[1739393247109,0.5747464,97108.0,97107.0,0.00015439]
[1739393247402,0.5727464,97108.0,97107.0,0.00015439]
[1739393247602,0.5747464,97108.0,97107.0,0.00015439]
[1739393248409,0.5747464,97108.0,97107.0,0.20610289]
[1739393248707,0.5747464,97108.0,97107.0,0.20710289]
[1739393250108,0.5737464,97108.0,97107.0,0.20610289]
[1739393251714,0.5747464,97108.0,97107.0,0.20710289]
[1739393253116,0.008,97108.0,97107.0,0.20710289]
[1739393253406,0.006,97108.0,97107.0,0.20710289]
[1739393253612,0.008,97108.0,97107.0,0.20710289]
[1739393255708,0.5697464,97108.0,97107.0,0.20610289]
[1739393255909,0.5697464,97108.0,97107.0,0.00015439]
[1739393256111,0.5677464,97108.0,97107.0,0.00015439]
[1739393256413,0.5687464,97108.0,97107.0,0.00415439]
[1739393256805,0.5707464,97108.0,97107.0,0.00015439]
[1739393257819,0.2079464,97108.0,97107.0,0.00015439]
[1739393258012,0.2139464,97108.0,97107.0,0.00115439]
[1739393258608,0.2079464,97108.0,97107.0,0.00015439]
[1739393258911,0.2139464,97108.0,97107.0,0.00115439]
[1739393260312,0.2139464,97108.0,97107.0,0.00215439]
[1739393261412,0.2079464,97108.0,97107.0,0.00115439]
[1739393261626,0.2139464,97108.0,97107.0,0.00215439]
[1739393262120,0.008,97108.0,97107.0,0.00215439]
[1739393262326,0.008,97108.0,97107.0,0.03415439]
[1739393262509,0.002,97108.0,97107.0,0.03415439]
[1739393262909,0.2059449,97110.0,97109.0,0.205944]
[1739393263513,0.2079464,97108.0,97107.0,0.00115439]
[1739393264821,0.2079464,97108.0,97107.0,0.00015439]
[1739393265525,0.002,97108.0,97092.0,0.2379797]
[1739393265826,0.2139463,97108.0,97107.0,0.001]
[1739393266014,0.2119463,97108.0,97107.0,0.001]
[1739393266212,0.006,97108.0,97092.0,0.2379797]
[1739393266412,0.2059781,97093.0,97092.0,0.2379797]
[1739393266719,0.2059781,97093.0,97092.0,0.032]
[1739393266923,0.2059909,97087.0,97086.0,0.36923546]
[1739393267518,0.2059972,97084.0,97083.0,0.00015447]
[1739393268313,0.2059972,97084.0,97083.0,0.20615387]
[1739393268631,0.2059972,97084.0,97083.0,0.20915387]
[1739393269721,0.2059866,97090.0,97089.0,0.2059817]
[1739393269921,0.2059866,97090.0,97083.0,0.00315447]
[1739393269922,0.2059952,97085.0,97084.0,0.2059953]
[1739393270824,0.2059952,97085.0,97084.0,1.7059953]
[1739393271013,0.5667952,97085.0,97084.0,1.7059953]
[1739393271216,0.3608,97085.0,97083.0,0.00015447]
[1739393271429,0.2059972,97084.0,97083.0,0.00015447]
[1739393271828,0.2039972,97084.0,97083.0,0.00015447]
[1739393273529,0.2039972,97084.0,97083.0,0.00115447]
[1739393274027,0.2039972,97084.0,97083.0,0.00315447]
[1739393277024,0.2059972,97084.0,97083.0,0.00315447]
[1739393277326,0.2139972,97084.0,97083.0,0.00215447]
[1739393279726,0.2119972,97084.0,97083.0,0.00115447]
[1739393279929,0.2139972,97084.0,97083.0,0.00215447]
[1739393280223,0.2139972,97084.0,97083.0,0.00115447]
[1739393281431,0.2139972,97084.0,97083.0,0.00215447]
[1739393282625,0.01,97084.0,97083.0,0.20815377]
[1739393283033,0.01,97084.0,97083.0,0.20715377]
[1739393283424,0.002,97084.0,97083.0,0.20615377]
[1739393283625,0.01,97084.0,97083.0,0.20815377]
[1739393284225,0.002,97084.0,97083.0,0.20715377]
[1739393284429,0.002,97084.0,97083.0,0.20915377]
[1739393284720,0.001,97084.0,97083.0,0.20815377]
[1739393285235,0.2069972,97084.0,97083.0,0.20815377]
[1739393285936,0.001,97084.0,97083.0,0.20815377]
[1739393286132,0.2059912,97087.0,97086.0,0.205993]
[1739393286435,0.2059837,97091.0,97090.0,0.2059824]
[1739393287324,0.37217736,97093.0,97083.0,0.00015447]
[1739393287521,0.37089736,97093.0,97092.0,0.2059802]
[1739393288530,0.37289736,97093.0,97092.0,0.2059802]
[1739393289033,0.3628,97093.0,97092.0,0.2059802]
[1739393289436,0.3638,97093.0,97092.0,0.2059802]
[1739393289941,0.3648,97093.0,97092.0,0.2059802]
[1739393290538,0.3628,97093.0,97092.0,0.2059802]
[1739393290739,0.3708,97093.0,97092.0,0.2069802]
[1739393294736,0.01,97093.0,97092.0,0.2069802]
[1739393295031,0.00015447,97102.0,97092.0,0.2069802]
[1739393295032,0.00015447,97102.0,97101.0,0.2059612]
[1739393295238,0.01047104,97103.0,97101.0,0.5667612]
[1739393295536,0.00154518,97113.0,97101.0,0.3608]
[1739393295837,0.00154518,97113.0,97112.0,0.5667378]
[1739393297136,0.00015447,97122.0,97120.0,0.2059194]
[1739393297440,0.00015447,97122.0,97121.0,0.2680187]
[1739393299535,0.00015447,97122.0,97121.0,0.2690187]
[1739393299940,0.00115447,97122.0,97121.0,0.2700187]
[1739393300143,0.20707107,97122.0,97121.0,0.2700187]
[1739393300439,0.20707107,97122.0,97121.0,0.0641]
[1739393300737,0.20707107,97122.0,97121.0,0.002]
[1739393301141,0.24017107,97122.0,97121.0,0.002]
[1739393301640,0.25025482,97122.0,97121.0,0.002]
[1739393302240,0.21715482,97122.0,97121.0,0.002]
[1739393302835,0.21715482,97122.0,97121.0,0.2079188]
[1739393303035,0.20707107,97122.0,97121.0,0.2079188]
[1739393303939,0.20707107,97122.0,97121.0,0.002]
[1739393309845,0.20707107,97122.0,97121.0,0.2079188]
[1739393310548,0.00115447,97122.0,97121.0,0.2079188]
[1739393310755,0.0315,97135.0,97121.0,0.2079188]
[1739393310756,0.12206108,97150.0,97121.0,0.37889274]
[1739393311051,0.205879,97140.0,97138.0,0.2058817]
[1739393311238,0.205879,97140.0,97127.0,0.0638]
[1739393311442,0.205879,97140.0,97139.0,0.2058807]
[1739393311649,0.0104558,97142.0,97130.0,0.3608]
[1739393311851,0.2058701,97144.0,97141.0,0.2058764]
[1739393312147,0.2058701,97144.0,97127.0,0.0638]
[1739393312148,0.36095447,97146.0,97137.0,0.3608]
[1739393312354,0.2058828,97138.0,97137.0,0.3608]
[1739393312544,0.2058828,97138.0,97137.0,0.5666849]
[1739393313247,0.2058828,97138.0,97137.0,0.5676849]
[1739393313450,0.2058828,97138.0,97137.0,0.5686849]
[1739393315390,0.2058828,97138.0,97137.0,0.002]
[1739393315756,0.5666828,97138.0,97137.0,0.002]
[1739393316261,0.2058828,97138.0,97137.0,0.002]
[1739393316849,0.3608,97143.0,97137.0,0.002]
[1739393317054,0.205878,97141.0,97140.0,0.2058769]
[1739393318443,0.205878,97141.0,97137.0,0.002]
[1739393318444,0.2058828,97138.0,97137.0,0.002]
[1739393319947,0.2058828,97138.0,97137.0,0.001]
[1739393320149,0.2058828,97138.0,97137.0,0.002]
[1739393320348,0.2058729,97143.0,97137.0,0.002]
[1739393320940,0.2058752,97142.0,97140.0,0.2058785]
[1739393321154,0.3608,97145.0,97137.0,0.002]
[1739393321354,0.2058828,97138.0,97137.0,0.002]
[1739393322160,0.2058828,97138.0,97137.0,0.2078849]
[1739393322350,0.00015447,97146.0,97137.0,0.002]
[1739393322658,0.2058722,97143.0,97142.0,0.2058722]
[1739393322843,0.00015447,97146.0,97145.0,0.2058679]
[1739393324355,0.20602027,97146.0,97145.0,0.2058679]
[1739393324751,0.56682027,97146.0,97145.0,0.2058679]
[1739393324952,0.2058722,97143.0,97142.0,0.001]
[1739393325958,0.56682027,97146.0,97145.0,0.002]
[1739393326462,0.56682027,97146.0,97145.0,0.001]
[1739393326648,0.56682027,97146.0,97142.0,0.002]
[1739393326649,0.2058722,97143.0,97142.0,0.002]
[1739393327049,0.2058722,97143.0,97142.0,0.001]
[1739393327255,0.5666722,97143.0,97133.0,0.24597679]
[1739393327558,0.2058912,97134.0,97133.0,0.24597679]
[1739393328655,0.5666912,97134.0,97133.0,0.24597679]
[1739393329754,0.5666912,97134.0,97133.0,0.24697679]
[1739393329964,0.5666912,97134.0,97133.0,0.002]
[1739393330143,0.3608,97134.0,97133.0,0.002]
[1739393330344,0.4314,97134.0,97133.0,0.002]
[1739393330758,0.44182717,97134.0,97133.0,0.002]
[1739393330959,0.01042717,97134.0,97133.0,0.002]
[1739393331254,0.2058894,97135.0,97133.0,0.002]
[1739393331462,0.3608,97134.0,97133.0,0.002]
[1739393331664,0.4314,97134.0,97133.0,0.002]
[1739393332947,0.4314,97134.0,97133.0,0.001]
[1739393333360,0.6372913,97134.0,97133.0,0.002]
[1739393333657,0.5666913,97134.0,97133.0,0.002]
[1739393334560,0.5666913,97134.0,97133.0,0.2078934]
[1739393334951,0.5666913,97134.0,97133.0,0.002]
[1739393337766,0.5666913,97134.0,97133.0,0.2078934]
[1739393338264,0.3608,97134.0,97133.0,0.2078934]
[1739393338860,0.3608,97134.0,97133.0,0.22398616]
[1739393339059,0.2058809,97139.0,97133.0,0.01809276]
[1739393339262,0.21606975,97139.0,97134.0,0.01609276]
[1739393339467,0.21606975,97139.0,97135.0,0.01609276]
[1739393339671,0.21606975,97139.0,97136.0,0.01609276]
[1739393339967,0.21606975,97139.0,97138.0,0.2058825]
[1739393340767,0.01018885,97139.0,97133.0,0.002]
[1739393340960,0.5666913,97134.0,97133.0,0.002]
[1739393341157,0.5666913,97134.0,97133.0,0.001]
[1739393341665,0.7849913,97134.0,97133.0,0.001]
[1739393342259,0.7849913,97134.0,97133.0,0.002]
[1739393343066,0.5791,97134.0,97122.0,0.30810906]
[1739393343368,0.5667146,97123.0,97122.0,0.30810906]
[1739393344369,1.0850146,97123.0,97122.0,5e-08]
[1739393345169,1.09514534,97123.0,97122.0,5e-08]
[1739393345372,0.2059337,97114.0,97113.0,0.00015447]
[1739393345662,0.5667337,97114.0,97113.0,0.00015447]
[1739393347162,0.5687337,97114.0,97113.0,0.00115447]
[1739393347863,0.5717337,97114.0,97113.0,0.00115447]
[1739393348267,0.5717337,97114.0,97113.0,0.00215447]
[1739393348669,0.5697337,97114.0,97113.0,0.00115447]
[1739393348869,0.5707337,97114.0,97113.0,0.00215447]
[1739393349458,0.5697337,97114.0,97113.0,0.00215447]
[1739393349678,0.5707337,97114.0,97113.0,0.00215447]
[1739393350161,0.5697337,97114.0,97113.0,0.00115447]
[1739393350357,0.5707337,97114.0,97113.0,0.00215447]
[1739393350564,0.5707337,97114.0,97113.0,0.00115447]
[1739393350872,0.5707337,97114.0,97113.0,0.20709027]
[1739393351072,0.5707337,97114.0,97113.0,0.20809027]
[1739393351366,0.3648,97114.0,97113.0,0.20809027]
[1739393351570,0.3648,97114.0,97113.0,0.20709027]
[1739393352670,0.5707337,97114.0,97113.0,0.20709027]
[1739393353570,0.5707337,97114.0,97113.0,0.00015447]
[1739393354068,0.5677337,97114.0,97113.0,0.00015447]
[1739393354370,0.5697337,97114.0,97113.0,0.00015447]
[1739393354574,0.7880337,97114.0,97113.0,7e-08]
[1739393354759,0.2059633,97100.0,97099.0,0.0315]
[1739393354959,0.5667633,97100.0,97099.0,0.0315]
[1739393355668,0.5657633,97100.0,97099.0,0.0315]
[1739393356458,0.5667633,97100.0,97099.0,0.0315]
[1739393357073,0.5687633,97100.0,97099.0,0.0315]
[1739393358366,0.57904527,97100.0,97099.0,0.0315]
[1739393365179,0.57904527,97100.0,97099.0,0.2374655]
[1739393365566,0.003,97100.0,97099.0,0.25356377]
[1739393365766,0.2059389,97112.0,97111.0,0.2059358]
[1739393365978,0.2183,97114.0,97113.0,0.2059358]
[1739393366778,0.2059295,97116.0,97115.0,0.2059315]
[1739393367079,0.21612668,97116.0,97115.0,0.2059315]
[1739393367875,0.205943,97110.0,97102.0,0.3608]
[1739393368074,0.2059634,97101.0,97100.0,0.205962]
[1739393368380,0.2059634,97101.0,97099.0,0.0315]
[1739393368381,0.3608,97103.0,97099.0,0.0315]
[1739393368770,0.2059634,97100.0,97099.0,0.0315]
[1739393368973,0.2059634,97100.0,97099.0,0.2374622]
[1739393369878,0.2059634,97100.0,97099.0,0.0315]
[1739393371881,0.2069634,97100.0,97099.0,0.0315]
[1739393372480,0.2059634,97100.0,97099.0,0.0315]
[1739393372683,0.5677634,97100.0,97099.0,0.0315]
[1739393373385,0.5677634,97100.0,97099.0,0.04759874]
[1739393373579,0.5677634,97100.0,97099.0,0.25356424]
[1739393375787,0.5677634,97100.0,97099.0,0.04759874]
[1739393376080,0.5667634,97100.0,97099.0,0.0315]
[1739393376276,0.5677634,97100.0,97099.0,0.0315]
[1739393382380,0.5677634,97100.0,97099.0,0.04759962]
[1739393384381,0.001,97100.0,97099.0,0.25356512]
[1739393384889,0.2069634,97100.0,97099.0,0.25356512]
[1739393385087,0.2069634,97100.0,97099.0,0.25356366]
[1739393386881,0.2059634,97100.0,97099.0,0.04759816]
[1739393387084,0.2069634,97100.0,97099.0,0.04759923]
[1739393387391,0.2069634,97100.0,97099.0,0.0315]
[1739393387582,0.2069634,97100.0,97099.0,0.04759983]
[1739393389596,0.2069634,97100.0,97099.0,0.0315]
[1739393390090,0.205974,97095.0,97094.0,0.0322]
[1739393390288,0.3608,97099.0,97090.0,0.03195447]
[1739393390490,0.5667824,97091.0,97090.0,0.03195447]
[1739393391078,0.5667824,97091.0,97090.0,0.0480553]
[1739393391796,0.5667824,97091.0,97090.0,0.00015447]
[1739393393394,0.5677824,97091.0,97090.0,0.00015447]
[1739393393795,0.57821993,97091.0,97090.0,0.00015447]
[1739393394989,1.43391753,97091.0,97077.0,0.30844603]
[1739393395190,0.56681,97078.0,97077.0,0.02369385]
[1739393395488,0.2060334,97067.0,97051.0,0.0327]
[1739393395690,0.5668334,97067.0,97051.0,0.0327]
[1739393396200,0.5668334,97067.0,97057.0,0.00015447]
[1739393396505,0.3608,97067.0,97060.0,0.36868166]
[1739393396798,0.5668461,97061.0,97060.0,0.36868166]
[1739393396991,0.5658461,97061.0,97060.0,0.36868166]
[1739393398199,0.5668461,97061.0,97060.0,0.36868166]
[1739393399093,0.5668461,97061.0,97060.0,0.28879537]
[1739393400389,0.5698461,97061.0,97060.0,0.28879537]
[1739393400596,0.9306461,97061.0,97060.0,0.28879537]
[1739393400803,0.2060525,97058.0,97057.0,0.00015447]
[1739393401095,0.2113262,97061.0,97059.0,0.2060501]
[1739393401308,0.001,97061.0,97059.0,0.2060501]
[1739393401797,0.3608,97066.0,97057.0,0.00015447]
[1739393402102,0.2059859,97090.0,97075.0,0.2060164]
[1739393402599,0.01044969,97088.0,97075.0,0.22211746]
[1739393402798,0.20753676,97087.0,97075.0,0.22211746]
[1739393402992,0.2059938,97086.0,97075.0,0.58291746]
[1739393403198,0.00154566,97087.0,97075.0,0.2060164]
[1739393403898,0.00315447,97076.0,97075.0,0.2060164]
[1739393404595,0.00154566,97087.0,97075.0,0.0201007]
[1739393404906,0.00154566,97087.0,97086.0,0.2059931]
[1739393405197,0.00154566,97087.0,97086.0,0.22209212]
[1739393405999,0.00154566,97087.0,97086.0,0.22209135]
[1739393406395,0.00154566,97087.0,97086.0,0.01609825]
[1739393406599,0.00154566,97087.0,97079.0,0.2060075]
[1739393406896,0.20601,97078.0,97077.0,0.00015447]
[1739393407493,0.3608,97080.0,97078.0,0.20601]
[1739393407691,0.205993,97086.0,97084.0,0.2059971]
[1739393407896,0.205993,97086.0,97079.0,0.0318]
[1739393407897,0.3608,97086.0,97079.0,0.0318]
[1739393408090,0.3608,97086.0,97080.0,0.01610065]
[1739393408296,0.3608,97086.0,97079.0,0.0318]
[1739393409097,0.2060037,97081.0,97079.0,0.2378074]
[1739393409299,0.3608,97086.0,97084.0,0.2059964]
[1739393410802,0.00154566,97087.0,97085.0,0.01610133]
[1739393411106,0.00015447,97096.0,97095.0,0.2059739]
[1739393411308,0.205936,97113.0,97106.0,0.2059506]
[1739393412402,0.205936,97113.0,97106.0,0.2069506]
[1739393412902,0.2059444,97109.0,97106.0,0.2069506]
[1739393414816,0.00078151,97114.0,97106.0,0.2069506]
[1739393415706,0.00015447,97116.0,97115.0,0.2059315]
[1739393417507,0.00015447,97116.0,97115.0,0.2069315]
[1739393417906,0.00015447,97116.0,97115.0,0.2079315]
[1739393421213,0.00015447,97116.0,97115.0,0.002]
[1739393422623,0.20608387,97116.0,97115.0,0.002]
[1739393425419,0.20608387,97116.0,97115.0,0.2079315]
[1739393425916,0.20608387,97116.0,97115.0,0.002]
[1739393430125,0.20608387,97116.0,97115.0,0.2079315]
[1739393435736,0.20608387,97116.0,97115.0,0.002]
[1739393435934,0.2059676,97098.0,97088.0,0.0322]
[1739393436133,0.2059676,97098.0,97097.0,0.01625306]
[1739393436334,0.2059676,97098.0,97097.0,0.00015447]
[1739393436335,0.5667676,97098.0,97097.0,0.00015447]
[1739393436540,0.2059803,97092.0,97075.0,0.00154501]
[1739393436939,0.2059803,97092.0,97091.0,0.15819091]
[1739393437139,0.21896475,97092.0,97091.0,0.15819091]
[1739393437443,0.2060015,97082.0,97081.0,0.2948317]
[1739393437642,0.9276015,97082.0,97081.0,0.00458522]
[1739393438338,0.2060206,97073.0,97072.0,0.00015447]
[1739393438536,0.5668206,97073.0,97072.0,0.00015447]
[1739393439537,0.2060609,97054.0,97053.0,0.0331]
[1739393440641,0.2040609,97054.0,97053.0,0.0331]
[1739393440942,0.2050609,97054.0,97053.0,0.0331]
[1739393441136,0.2060609,97054.0,97053.0,0.0331]
[1739393443442,0.2060609,97054.0,97053.0,1.5331]
[1739393444244,0.002,97054.0,97053.0,1.5331]
[1739393445352,0.01465157,97054.0,97053.0,1.5331]
[1739393445548,0.002,97054.0,97053.0,1.5331]
[1739393448045,0.002,97054.0,97053.0,0.0331]
[1739393449348,0.2080609,97054.0,97053.0,0.0331]
[1739393451351,0.2080609,97054.0,97053.0,0.239163]
[1739393451752,0.01316489,97056.0,97053.0,0.0331]
[1739393451952,0.206051,97059.0,97053.0,0.0331]
[1739393452250,0.3608,97062.0,97061.0,0.2060461]
[1739393453453,0.3628,97062.0,97061.0,0.2060461]
[1739393455054,0.3658,97062.0,97061.0,0.2060461]
[1739393456655,0.569844,97062.0,97061.0,0.2080461]
[1739393457250,0.571844,97062.0,97061.0,0.2060461]
[1739393458249,0.005,97062.0,97061.0,0.5668461]
[1739393458450,0.3608,97072.0,97061.0,0.5668461]
[1739393458451,0.3608,97093.0,97080.0,0.2060058]
[1739393458650,0.3608,97093.0,97077.0,0.3608]
[1739393458852,0.12206108,97110.0,97086.0,0.3608]
[1739393459053,0.2183,97119.0,97096.0,0.3608]
[1739393459348,0.3608,97122.0,97106.0,0.3608]
[1739393459556,0.19738317,97113.0,97112.0,0.2059379]
[1739393459955,0.40331897,97113.0,97112.0,0.2059379]
[1739393460258,0.18453021,97113.0,97112.0,0.2059379]
[1739393460652,0.13663021,97113.0,97112.0,0.2069379]
[1739393461051,0.03683021,97113.0,97112.0,0.2069379]
[1739393461461,0.04383021,97113.0,97112.0,0.2079379]
[1739393461857,0.009,97113.0,97112.0,0.2079379]
[1739393463456,0.009,97113.0,97112.0,1.7079379]
[1739393464861,0.009,97113.0,97112.0,0.2079379]
[1739393465651,0.00015447,97119.0,97117.0,0.2059273]
[1739393465855,0.2071742,97133.0,97132.0,0.2058955]
[1739393466060,0.2058807,97139.0,97136.0,0.2058864]
[1739393466260,0.2058807,97139.0,97123.0,0.0307]
[1739393466464,0.2058807,97139.0,97137.0,0.2058841]
[1739393467362,0.2078807,97139.0,97137.0,0.2058841]
[1739393467859,0.002,97139.0,97137.0,0.2058841]
[1739393468066,0.00015447,97148.0,97147.0,0.2058637]
[1739393468452,0.36234473,97164.0,97146.0,0.3608]
[1739393468651,0.36234473,97164.0,97138.0,0.27602216]
[1739393468652,0.36234473,97164.0,97154.0,0.3608]
[1739393468960,0.56817293,97164.0,97160.0,0.2058358]
[1739393469162,0.56817293,97164.0,97155.0,1.5]
[1739393469163,0.36234473,97164.0,97162.0,0.205831]
[1739393469667,0.00154473,97164.0,97162.0,0.205831]
[1739393470166,0.00154473,97164.0,97154.0,0.3608]
[1739393470664,0.3608,97158.0,97153.0,0.00015439]
[1739393470853,0.2058474,97155.0,97153.0,0.00015439]
[1739393473669,0.002,97155.0,97154.0,0.2058488]
[1739393474062,0.3608,97161.0,97154.0,0.2058488]
[1739393474863,0.003,97155.0,97154.0,0.2058488]
[1739393475263,0.003,97155.0,97154.0,0.2118488]
[1739393476074,0.003,97155.0,97154.0,0.002]
[1739393476375,0.5696467,97155.0,97154.0,0.002]
[1739393476556,0.5666467,97155.0,97154.0,0.002]
[1739393477272,0.5666467,97155.0,97154.0,0.004]
[1739393477464,0.5666467,97155.0,97154.0,0.006]
[1739393477774,0.5666467,97155.0,97154.0,0.004]
[1739393477775,0.5696467,97155.0,97154.0,0.004]
[1739393478266,0.5696467,97155.0,97154.0,0.005]
[1739393478565,0.5696467,97155.0,97153.0,0.00015439]
[1739393478774,0.2058878,97136.0,97134.0,0.2058895]
[1739393479667,0.205911,97125.0,97121.0,0.2709186]
[1739393479872,0.3608,97129.0,97125.0,0.00015439]
[1739393480064,0.2059082,97126.0,97125.0,0.00015439]
[1739393480367,0.2049082,97126.0,97125.0,0.00015439]
[1739393480960,0.5657082,97126.0,97125.0,0.00315439]
[1739393481371,0.5657082,97126.0,97125.0,0.01315439]
[1739393481572,0.58183324,97126.0,97125.0,0.00560918]
[1739393482165,0.58183324,97126.0,97095.0,0.2059737]
[1739393482166,0.37692504,97126.0,97095.0,0.2059737]
[1739393482362,0.3608,97098.0,97095.0,0.2059737]
[1739393482567,0.2059697,97097.0,97095.0,0.2059737]
[1739393483973,0.2119697,97097.0,97095.0,0.2059737]
[1739393484169,0.006,97097.0,97095.0,0.2059737]
[1739393484373,0.006,97097.0,97096.0,0.01609896]
[1739393484770,0.001,97097.0,97096.0,0.01609896]
[1739393485170,0.001,97097.0,97095.0,0.2199737]
[1739393485470,0.001,97097.0,97096.0,0.01609836]
[1739393486268,0.002,97097.0,97096.0,0.01609836]
[1739393486977,0.00015449,97106.0,97096.0,0.01609836]
[1739393487173,0.00015449,97106.0,97105.0,0.2059528]
[1739393487775,0.00015449,97106.0,97105.0,0.22205084]
[1739393489377,0.00015449,97106.0,97105.0,0.22204928]
[1739393489575,0.00215449,97106.0,97105.0,0.22204928]
[1739393490076,0.00115449,97106.0,97105.0,0.22304928]
[1739393490777,0.00215449,97106.0,97105.0,0.22204928]
[1739393490986,0.00115449,97106.0,97105.0,0.24780305]
[1739393491184,0.00115449,97106.0,97105.0,0.25380305]
[1739393491387,0.00115449,97106.0,97105.0,0.22804928]
[1739393492278,0.00015449,97106.0,97105.0,0.22904928]
[1739393492592,0.20610509,97106.0,97105.0,0.22904928]
[1739393492778,0.20610509,97106.0,97105.0,0.22504928]
[1739393492974,0.20610509,97106.0,97105.0,0.22404928]
[1739393493174,0.20610509,97106.0,97105.0,0.22604928]
[1739393493576,0.20910509,97106.0,97105.0,0.22204928]
[1739393493775,0.21110509,97106.0,97105.0,0.22204928]
[1739393494274,0.21210509,97106.0,97105.0,0.22204928]
[1739393495286,0.21210509,97106.0,97105.0,0.2059528]
[1739393495982,0.21010509,97106.0,97105.0,0.22205048]
[1739393496186,0.20810509,97106.0,97105.0,0.2069528]
[1739393496572,0.20610509,97106.0,97105.0,0.22205035]
[1739393496771,0.21210509,97106.0,97105.0,0.22205035]
[1739393496988,0.21210509,97106.0,97105.0,0.2059528]
[1739393497186,0.21010509,97106.0,97105.0,0.2059528]
[1739393497487,0.20910509,97106.0,97105.0,0.2059528]
[1739393497877,0.20810509,97106.0,97105.0,0.2069528]
[1739393498985,0.21010509,97106.0,97105.0,0.2069528]
[1739393499392,0.21210509,97106.0,97105.0,0.2059528]
[1739393499782,0.00615449,97106.0,97105.0,0.2059528]
[1739393501280,0.3608,97128.0,97127.0,0.2059061]
[1739393502589,0.3618,97128.0,97127.0,0.2059061]
[1739393502985,0.2059181,97122.0,97121.0,0.2059188]
[1739393503191,0.001,97128.0,97121.0,0.01609537]
[1739393503391,0.002,97128.0,97122.0,0.01609537]
[1739393503587,0.002,97128.0,97123.0,0.01609537]
[1739393503780,0.002,97128.0,97118.0,0.00015449]
[1739393503781,0.002,97128.0,97124.0,0.01609537]
[1739393503984,0.002,97128.0,97126.0,0.2059076]
[1739393504292,0.001,97128.0,97127.0,0.01609537]
[1739393504879,0.2059031,97129.0,97127.0,0.01609537]
[1739393505082,0.2059031,97129.0,97128.0,0.01609537]
[1739393506082,0.2059031,97129.0,97128.0,0.01609345]
[1739393506493,0.2059031,97129.0,97128.0,0.01609401]
[1739393506688,0.2159031,97129.0,97128.0,0.01709401]
[1739393507091,0.01,97129.0,97128.0,0.01709401]
[1739393507485,0.01,97129.0,97128.0,0.05029401]
[1739393508894,0.06,97129.0,97128.0,0.05029401]
[1739393509093,0.06,97129.0,97128.0,0.46724293]
[1739393510394,0.06,97129.0,97128.0,0.46723829]
[1739393510788,0.06,97129.0,97128.0,0.67314219]
[1739393511593,0.2659018,97129.0,97128.0,0.25619555]
[1739393511889,0.2659018,97129.0,97128.0,0.22299555]
[1739393512298,0.2659018,97129.0,97128.0,0.2069039]
[1739393513092,0.2659018,97129.0,97128.0,0.22299782]
[1739393513287,0.2659018,97129.0,97128.0,0.58379782]
[1739393513698,0.06,97129.0,97128.0,0.58379782]
[1739393514489,0.06,97129.0,97128.0,0.22299782]
[1739393514893,0.06,97129.0,97128.0,0.2069039]